bitfinex-derivatives/quotes_BTCF0:USTF0_20241025
["timestamp","ask_amount","ask_price","bid_price","bid_amount"]
[1729855034511,0.092846,67989.0,67988.0,0.52356018]
[1729855035517,0.166427,67989.0,67988.0,0.52356018]
[1729855039110,0.092846,67989.0,67988.0,0.52356018]
[1729855040416,0.092846,67989.0,67988.0,0.54657162]
[1729855043424,0.092846,67989.0,67988.0,0.54657169]
[1729855043619,0.092846,67989.0,67988.0,0.56958312]
[1729855043826,0.092846,67989.0,67988.0,0.54657161]
[1729855044318,0.092846,67989.0,67988.0,0.62988899]
[1729855044517,0.133577,67993.0,67992.0,0.073578]
[1729855044829,0.27095343,67993.0,67992.0,0.073578]
[1729855045719,0.27095343,67993.0,67992.0,0.09658865]
[1729855046021,0.27095343,67993.0,67992.0,0.073578]
[1729855046824,0.27088237,67993.0,67992.0,0.073578]
[1729855047019,0.226423,67993.0,67992.0,0.09658846]
[1729855047516,0.226423,67993.0,67992.0,0.073578]
[1729855051316,0.06,67993.0,67992.0,0.073578]
[1729855051516,0.152846,67993.0,67992.0,0.073578]
[1729855052520,0.226423,67993.0,67992.0,0.073578]
[1729855052825,0.226423,67993.0,67992.0,0.23610274]
[1729855053231,0.226423,67993.0,67992.0,0.14691669]
[1729855053532,0.226423,67993.0,67992.0,0.1628524]
[1729855053919,0.226423,67993.0,67992.0,0.16278183]
[1729855057637,0.329373,67993.0,67992.0,0.16278183]
[1729855058536,0.329373,67993.0,67992.0,0.236163]
[1729855059032,0.255796,67993.0,67992.0,0.236163]
[1729855059426,0.329373,67993.0,67992.0,0.236163]
[1729855059925,0.37411283,67993.0,67992.0,0.073578]
[1729855060927,0.37411862,67993.0,67992.0,0.073578]
[1729855061526,0.37411862,67993.0,67992.0,0.09658914]
[1729855061723,0.37411862,67993.0,67992.0,0.073578]
[1729855063033,0.42607333,67993.0,67992.0,0.073578]
[1729855064533,0.33322733,67993.0,67992.0,0.073578]
[1729855064734,0.42607333,67993.0,67992.0,0.073578]
[1729855065042,0.48521822,67993.0,67992.0,0.073578]
[1729855065732,0.48519468,67993.0,67992.0,0.073578]
[1729855065931,0.63241739,67993.0,67992.0,0.073578]
[1729855066334,0.63215718,67993.0,67992.0,0.073578]
[1729855067429,0.55858018,67993.0,67992.0,0.073578]
[1729855067629,0.30045727,67993.0,67992.0,0.09658907]
[1729855067838,0.255796,67993.0,67992.0,0.18567847]
[1729855068743,0.255796,67993.0,67992.0,0.2688582]
[1729855070441,0.329373,67993.0,67992.0,0.1626674]
[1729855071146,0.255796,67993.0,67992.0,0.1626674]
[1729855071937,0.329373,67993.0,67992.0,0.1626674]
[1729855073541,0.329373,67993.0,67992.0,0.25073531]
[1729855074848,0.255796,67993.0,67992.0,0.1626674]
[1729855075336,0.255796,67993.0,67992.0,0.16260407]
[1729855077535,0.255796,67993.0,67992.0,0.18562703]
[1729855079845,0.255796,67993.0,67992.0,0.29163879]
[1729855080643,0.255796,67993.0,67992.0,0.29163821]
[1729855082851,0.30084033,67993.0,67992.0,0.09658808]
[1729855083337,0.30084033,67993.0,67992.0,0.073578]
[1729855083546,0.30084033,67993.0,67992.0,0.09658777]
[1729855084246,0.255796,67993.0,67992.0,0.09658777]
[1729855084547,0.255796,67993.0,67992.0,0.073578]
[1729855089142,0.30081482,67993.0,67992.0,0.073578]
[1729855089743,0.255796,67993.0,67992.0,0.26810564]
[1729855090751,0.255796,67993.0,67992.0,0.62890564]
[1729855092345,0.16295,67993.0,67992.0,0.62890564]
[1729855092553,0.255796,67993.0,67992.0,0.62890564]
[1729855092851,0.255796,67993.0,67992.0,0.65191521]
[1729855094145,0.255796,67993.0,67992.0,0.63416651]
[1729855094847,0.255796,67993.0,67992.0,0.54613348]
[1729855097458,0.255796,67993.0,67992.0,0.65194756]
[1729855097853,0.300777,67993.0,67992.0,0.45738757]
[1729855099149,0.35305542,67993.0,67992.0,0.45738757]
[1729855099751,0.35305542,67993.0,67992.0,0.434378]
[1729855103852,0.300777,67993.0,67992.0,0.45738709]
[1729855104264,0.35316973,67993.0,67992.0,0.434378]
[1729855104863,0.35316973,67993.0,67992.0,0.62881117]
[1729855104864,0.255796,67993.0,67992.0,0.62881117]
[1729855108354,0.255796,67993.0,67992.0,0.52308081]
[1729855108855,0.255796,67993.0,67992.0,0.62884745]
[1729855111860,0.255796,67993.0,67992.0,0.434378]
[1729855112059,0.255796,67993.0,67992.0,0.62876926]
[1729855112663,0.255796,67993.0,67992.0,0.52306169]
[1729855113059,0.255796,67993.0,67992.0,0.434378]
[1729855114763,0.255796,67993.0,67992.0,0.45738735]
[1729855116372,0.329373,67993.0,67992.0,0.45738735]
[1729855116558,0.32114273,67993.0,67992.0,0.45738735]
[1729855116764,0.3661014,67993.0,67992.0,0.434378]
[1729855116964,0.2925244,67993.0,67992.0,0.434378]
[1729855117365,0.2925244,67993.0,67992.0,0.45738812]
[1729855117963,0.24756573,67993.0,67992.0,0.45738812]
[1729855118169,0.32114273,67993.0,67992.0,0.45738812]
[1729855120067,0.32114273,67993.0,67992.0,0.54620757]
[1729855120964,0.32114273,67993.0,67992.0,0.16239745]
[1729855121172,0.32114273,67993.0,67992.0,0.18540757]
[1729855121676,0.32114273,67993.0,67992.0,0.18540294]
[1729855122671,0.24756573,67993.0,67992.0,0.18540294]
[1729855122974,0.24756573,67993.0,67992.0,0.16239282]
[1729855124975,0.24756573,67993.0,67992.0,0.25047113]
[1729855125172,0.24756573,67993.0,67992.0,0.16239282]
[1729855125671,0.24756573,67993.0,67992.0,0.25047113]
[1729855125876,0.24756573,67993.0,67992.0,0.16239282]
[1729855126065,0.24756573,67993.0,67992.0,0.25047113]
[1729855126268,0.24756573,67993.0,67992.0,0.16238426]
[1729855126469,0.24756573,67993.0,67992.0,0.16242174]
[1729855127471,0.24756573,67993.0,67992.0,0.26823312]
[1729855128367,0.24756573,67993.0,67992.0,0.16242174]
[1729855128578,0.32114273,67993.0,67992.0,0.16242174]
[1729855129276,0.24756573,67993.0,67992.0,0.16242174]
[1729855129879,0.24756573,67993.0,67992.0,0.18543135]
[1729855131373,0.32114273,67993.0,67992.0,0.18543135]
[1729855131681,0.24756573,67993.0,67992.0,0.18543135]
[1729855131878,0.32114273,67993.0,67992.0,0.18543135]
[1729855132277,0.24756573,67993.0,67992.0,0.18543135]
[1729855135585,0.24756573,67993.0,67992.0,0.09658761]
[1729855136079,0.24756573,67993.0,67992.0,0.1195978]
[1729855137877,0.24756573,67993.0,67992.0,0.0965879]
[1729855142686,0.24756573,67993.0,67992.0,0.18540189]
[1729855143895,0.24756573,67993.0,67992.0,0.16239199]
[1729855145098,0.24756573,67993.0,67992.0,0.18540168]
[1729855145587,0.24756573,67993.0,67992.0,0.29126495]
[1729855145985,0.24756573,67993.0,67992.0,0.26825526]
[1729855146189,0.24756573,67993.0,67992.0,0.29126482]
[1729855147494,0.24756573,67993.0,67992.0,0.18540155]
[1729855150313,0.24756573,67993.0,67992.0,0.18528701]
[1729855150616,0.24756573,67993.0,67992.0,0.09658756]
[1729855153520,0.24756573,67993.0,67992.0,0.0965874]
[1729855156710,0.15471973,67993.0,67992.0,0.14063391]
[1729855157310,0.15471973,67993.0,67992.0,0.11762451]
[1729855157513,0.15471973,67993.0,67992.0,0.14063391]
[1729855157819,0.15471973,67993.0,67992.0,0.18513188]
[1729855159312,0.15471973,67993.0,67992.0,0.27797788]
[1729855160221,0.15471973,67993.0,67992.0,0.25496848]
[1729855161314,0.15471973,67993.0,67992.0,0.61576848]
[1729855161619,0.15471973,67993.0,67992.0,0.63877654]
[1729855161822,0.15471973,67993.0,67992.0,0.65074062]
[1729855162121,0.15471973,67993.0,67992.0,0.65222369]
[1729855162318,0.15471973,67993.0,67992.0,0.65074062]
[1729855163416,0.15471973,67993.0,67992.0,0.73471507]
[1729855164414,0.15471973,67993.0,67992.0,0.54067115]
[1729855164715,0.15471973,67993.0,67992.0,0.73472694]
[1729855164916,0.15471973,67993.0,67992.0,0.75625145]
[1729855165115,0.15471973,67993.0,67992.0,0.7577344]
[1729855165320,0.15471973,67993.0,67992.0,0.73472698]
[1729855165524,0.15471973,67993.0,67992.0,0.75625155]
[1729855165720,0.15471973,67993.0,67992.0,0.54067097]
[1729855165910,0.15471973,67993.0,67992.0,0.60769422]
[1729855166112,0.15471973,67993.0,67992.0,0.53918808]
[1729855167420,0.15471973,67993.0,67992.0,0.56219521]
[1729855167622,0.07557519,67993.0,67992.0,0.57599949]
[1729855168325,0.07557519,67993.0,67992.0,0.57599911]
[1729855169020,0.07557519,67993.0,67992.0,0.21519911]
[1729855169225,0.07557519,67993.0,67992.0,0.93679911]
[1729855171121,0.11233519,67993.0,67992.0,0.93679911]
[1729855171518,0.11233519,67993.0,67992.0,0.92299483]
[1729855171720,0.11233519,67993.0,67992.0,0.8999877]
[1729855171920,0.11233519,67993.0,67992.0,0.92299468]
[1729855172732,0.11233519,67993.0,67992.0,1.11702097]
[1729855173627,0.11233519,67993.0,67992.0,1.10505688]
[1729855173828,0.11233519,67993.0,67992.0,1.1170203]
[1729855174823,0.11233519,67993.0,67992.0,1.23943809]
[1729855175022,0.12703519,67993.0,67992.0,1.23943809]
[1729855175423,0.12703519,67993.0,67992.0,1.21643129]
[1729855176235,0.05341559,67993.0,67992.0,1.44864227]
[1729855176535,0.05341559,67993.0,67992.0,1.35579627]
[1729855176926,0.05341559,67993.0,67992.0,1.44864227]
[1729855177130,0.05341559,67993.0,67992.0,1.35579627]
[1729855177727,0.05341559,67993.0,67992.0,1.44864227]
[1729855178039,0.05341559,67993.0,67992.0,1.35579627]
[1729855178428,0.05341559,67993.0,67992.0,1.44864227]
[1729855178729,0.05341559,67993.0,67992.0,1.35270676]
[1729855180340,0.05341559,67993.0,67992.0,1.30706949]
[1729855180634,0.05341559,67993.0,67992.0,1.21422349]
[1729855180830,0.05341559,67993.0,67992.0,1.3026703]
[1729855181030,0.05341559,67993.0,67992.0,1.20846086]
[1729855182843,0.02028819,67993.0,67992.0,1.20846086]
[1729855183033,0.02028819,67993.0,67992.0,1.11561486]
[1729855183241,0.02028819,67993.0,67992.0,1.20846086]
[1729855184439,0.02028819,67993.0,67992.0,1.11561486]
[1729855184633,0.02028819,67993.0,67992.0,1.20846086]
[1729855185033,0.02028819,67993.0,67992.0,1.20846071]
[1729855185232,0.02028819,67993.0,67992.0,1.11561471]
[1729855185436,0.02028819,67993.0,67992.0,1.24526962]
[1729855186339,0.02028819,67993.0,67992.0,1.50600007]
[1729855186543,0.0635,68006.0,68005.0,0.073564]
[1729855186841,0.0635,68006.0,68005.0,0.71983193]
[1729855187034,0.0635,68006.0,68005.0,0.6380911]
[1729855187230,0.0635,68006.0,68005.0,0.84291289]
[1729855187435,0.092846,68020.0,68011.0,0.073557]
[1729855187635,0.0603,68016.0,68011.0,0.527203]
[1729855187834,0.16292,68012.0,68011.0,0.527203]
[1729855191048,0.16292,68012.0,68011.0,0.55037029]
[1729855191747,0.16292,68012.0,68011.0,0.56233115]
[1729855192241,0.16292,68012.0,68011.0,0.46948515]
[1729855192435,0.16292,68012.0,68011.0,0.56233115]
[1729855193244,0.16292,68012.0,68011.0,0.55037029]
[1729855193434,0.16292,68012.0,68011.0,0.55497049]
[1729855193631,0.16292,68012.0,68011.0,0.56233082]
[1729855194745,0.16292,68012.0,68011.0,0.5853311]
[1729855195542,0.16292,68012.0,68011.0,0.56233082]
[1729855195947,0.16292,68012.0,68011.0,0.58533091]
[1729855196449,0.17468,68012.0,68011.0,0.58533057]
[1729855196648,0.12868174,68012.0,68011.0,0.58533057]
[1729855196846,0.12868174,68012.0,68011.0,0.58532867]
[1729855197345,0.12868174,68012.0,68011.0,1.02644867]
[1729855197643,0.12868174,68012.0,68011.0,1.00344973]
[1729855197851,0.09556327,68012.0,68011.0,1.00344973]
[1729855198749,0.10732327,68012.0,68011.0,1.00344973]
[1729855199747,0.10732327,68012.0,68011.0,0.56232973]
[1729855201350,0.10732327,68012.0,68011.0,0.46948373]
[1729855201751,0.10732327,68012.0,68011.0,0.55497007]
[1729855203252,0.10732327,68012.0,68011.0,0.55037029]
[1729855203456,0.10732327,68012.0,68011.0,0.55497027]
[1729855205055,0.12202327,68012.0,68011.0,0.55497027]
[1729855207748,0.12202327,68012.0,68011.0,0.57796968]
[1729855208850,0.12202327,68012.0,68011.0,0.48512368]
[1729855209057,0.12202327,68012.0,68011.0,0.57796968]
[1729855210864,0.12202327,68012.0,68011.0,0.57797034]
[1729855211262,0.12202327,68012.0,68011.0,0.65101082]
[1729855211563,0.12202327,68012.0,68011.0,0.64184911]
[1729855212563,0.12202327,68012.0,68011.0,0.66484883]
[1729855212764,0.12202327,68012.0,68011.0,0.64184911]
[1729855213760,0.21486927,68012.0,68011.0,0.54900311]
[1729855213967,0.21486927,68012.0,68011.0,0.62212462]
[1729855214152,0.12202327,68012.0,68011.0,0.62212462]
[1729855214356,0.12202327,68012.0,68011.0,0.54900311]
[1729855214557,0.12202327,68012.0,68011.0,0.63724913]
[1729855214961,0.12202327,68012.0,68011.0,0.64920974]
[1729855218270,0.12202327,68012.0,68011.0,0.73685567]
[1729855218458,0.12202327,68012.0,68011.0,0.36409506]
[1729855218660,0.12202327,68012.0,68011.0,0.73685567]
[1729855219859,0.12202327,68012.0,68011.0,0.75985686]
[1729855220964,0.12202327,68012.0,68011.0,0.75328792]
[1729855221764,0.12202327,68012.0,68011.0,0.74132731]
[1729855221964,0.12202327,68012.0,68011.0,0.75328775]
[1729855222168,0.12202327,68012.0,68011.0,0.67221047]
[1729855222468,0.12202327,68012.0,68011.0,0.67221013]
[1729855222666,0.12202327,68012.0,68011.0,0.69521114]
[1729855222865,0.08890164,68012.0,68011.0,0.77625547]
[1729855223775,0.08890164,68012.0,68011.0,0.76889526]
[1729855224073,0.08890164,68012.0,68011.0,0.99192716]
[1729855224278,0.08890164,68012.0,68011.0,0.84814819]
[1729855224468,0.08890164,68012.0,68011.0,0.96895487]
[1729855224774,0.10066164,68012.0,68011.0,0.99195526]
[1729855224977,0.13741164,68012.0,68011.0,0.99195526]
[1729855225377,0.13741164,68012.0,68011.0,0.88970167]
[1729855225873,0.13741164,68012.0,68011.0,0.58533077]
[1729855226080,0.13741164,68012.0,68011.0,0.49248477]
[1729855226268,0.13741164,68012.0,68011.0,0.58533077]
[1729855226465,0.13741164,68012.0,68011.0,0.49248477]
[1729855226675,0.13741164,68012.0,68011.0,0.58533077]
[1729855226868,0.13741164,68012.0,68011.0,0.57797081]
[1729855227968,0.13741164,68012.0,68011.0,0.55497042]
[1729855232777,0.13741164,68012.0,68011.0,0.46212442]
[1729855232984,0.13741164,68012.0,68011.0,0.64210882]
[1729855233578,0.13741164,68012.0,68011.0,0.63750869]
[1729855233984,0.13741164,68012.0,68011.0,0.64210875]
[1729855234686,0.13741164,68012.0,68011.0,0.74578573]
[1729855234885,0.13741164,68012.0,68011.0,0.76878568]
[1729855235082,0.13741164,68012.0,68011.0,0.67573905]
[1729855235288,0.13741164,68012.0,68011.0,0.75283716]
[1729855235486,0.30381364,68012.0,68011.0,0.47536081]
[1729855235782,0.39665964,68012.0,68011.0,0.3608]
[1729855236186,0.30381364,68012.0,68011.0,0.3608]
[1729855237488,0.32721559,68012.0,68011.0,0.3608]
[1729855238182,0.32721559,68012.0,68011.0,0.434357]
[1729855238687,0.23025764,68012.0,68011.0,0.434357]
[1729855239288,0.13741164,68012.0,68011.0,0.434357]
[1729855239683,0.23025764,68012.0,68011.0,0.434357]
[1729855241079,0.33102162,68012.0,68011.0,0.434357]
[1729855241694,0.27688503,68012.0,68011.0,0.434357]
[1729855241889,0.33106182,68012.0,68011.0,0.434357]
[1729855242385,0.23821582,68012.0,68011.0,0.527203]
[1729855247291,0.18403903,68012.0,68011.0,0.527203]
[1729855248082,0.18403903,68012.0,68011.0,0.62330293]
[1729855248083,0.13741164,68012.0,68011.0,0.62330293]
[1729855248287,0.13741164,68012.0,68011.0,0.71008353]
[1729855248492,0.13741164,68012.0,68011.0,0.55002254]
[1729855248695,0.13741164,68012.0,68011.0,0.62790326]
[1729855248997,0.13741164,68012.0,68011.0,0.55462287]
[1729855249195,0.13741164,68012.0,68011.0,0.63670556]
[1729855249401,0.13741164,68012.0,68011.0,0.64130596]
[1729855250799,0.13741164,68012.0,68011.0,0.71438007]
[1729855250989,0.13741164,68012.0,68011.0,0.64130596]
[1729855251184,0.13741164,68012.0,68011.0,0.71437796]
[1729855251595,0.13741164,68012.0,68011.0,0.64130596]
[1729855252094,0.13741164,68012.0,68011.0,0.71437785]
[1729855252290,0.13741164,68012.0,68011.0,0.62769483]
[1729855252996,0.13741164,68012.0,68011.0,0.71429264]
[1729855253599,0.13741164,68012.0,68011.0,0.71426961]
[1729855255093,0.13741164,68012.0,68011.0,0.62769483]
[1729855255294,0.13741164,68012.0,68011.0,0.4389574]
[1729855257109,0.13741164,68012.0,68011.0,0.3608]
[1729855257401,0.23025764,68012.0,68011.0,0.3608]
[1729855258308,0.25350484,68012.0,68011.0,0.434357]
[1729855258710,0.23025764,68012.0,68011.0,0.434357]
[1729855259207,0.13741164,68012.0,68011.0,0.434357]
[1729855262101,0.13741164,68012.0,68011.0,0.55480497]
[1729855262307,0.18492728,68012.0,68011.0,0.53180332]
[1729855263503,0.13741164,68012.0,68011.0,0.7209395]
[1729855264000,0.13741164,68012.0,68011.0,0.80693989]
[1729855265109,0.13741164,68012.0,68011.0,0.78403579]
[1729855267615,0.13741164,68012.0,68011.0,0.68113351]
[1729855268111,0.13741164,68012.0,68011.0,0.78413572]
[1729855268310,0.13741164,68012.0,68011.0,0.68113351]
[1729855268511,0.13741164,68012.0,68011.0,0.77954744]
[1729855268808,0.13741164,68012.0,68011.0,0.78414749]
[1729855269213,0.13741164,68012.0,68011.0,0.68113324]
[1729855269812,0.13741164,68012.0,68011.0,0.68116338]
[1729855272023,0.13741164,68012.0,68011.0,0.68116336]
[1729855272712,0.13741164,68012.0,68011.0,0.78412522]
[1729855273215,0.13741164,68012.0,68011.0,0.80712536]
[1729855275113,0.13741164,68012.0,68011.0,1.16792536]
[1729855275411,0.13741164,68012.0,68011.0,1.06496349]
[1729855278722,0.13741164,68012.0,68011.0,0.97860316]
[1729855278920,0.13741164,68012.0,68011.0,0.97400314]
[1729855279223,0.13741164,68012.0,68011.0,0.97860305]
[1729855283514,0.05739364,68012.0,68011.0,0.97860305]
[1729855283822,0.05739364,68012.0,68011.0,1.02246075]
[1729855284013,0.05739364,68012.0,68011.0,0.97860305]
[1729855285614,0.05739364,68012.0,68011.0,1.40268523]
[1729855286020,0.02427706,68012.0,68011.0,1.41004447]
[1729855286218,0.0307,68030.0,68011.0,1.33648747]
[1729855286418,0.0307,68030.0,68029.0,0.434338]
[1729855286621,0.123546,68030.0,68029.0,0.52024008]
[1729855287224,0.226436,68030.0,68029.0,0.52024008]
[1729855288220,0.226436,68030.0,68029.0,0.44670208]
[1729855289917,0.299973,68030.0,68029.0,0.44670208]
[1729855290924,0.226436,68030.0,68029.0,0.52024008]
[1729855291120,0.092846,68030.0,68029.0,0.52024008]
[1729855292124,0.066381,68032.0,68031.0,0.073536]
[1729855292333,0.159227,68032.0,68031.0,0.23248557]
[1729855292521,0.159227,68032.0,68031.0,0.073536]
[1729855292722,0.159227,68032.0,68031.0,0.14658349]
[1729855293020,0.092846,68032.0,68031.0,0.14658249]
[1729855293227,0.166381,68032.0,68031.0,0.15885009]
[1729855293423,0.607341,68032.0,68031.0,0.0858026]
[1729855293725,0.26998265,68032.0,68025.0,0.08767628]
[1729855293928,0.066387,68026.0,68025.0,0.16121828]
[1729855294114,0.26283465,68026.0,68025.0,0.16121828]
[1729855295320,0.20717349,68026.0,68025.0,0.16121828]
[1729855295839,0.32428444,68026.0,68025.0,0.16121828]
[1729855297027,0.25789744,68026.0,68025.0,0.16121828]
[1729855297329,0.33143844,68026.0,68025.0,0.16121828]
[1729855298225,0.33061273,68026.0,68025.0,0.16121828]
[1729855298418,0.26827766,68026.0,68025.0,0.16121828]
[1729855298621,0.19473666,68026.0,68025.0,0.16121828]
[1729855299324,0.19473666,68026.0,68025.0,0.073542]
[1729855300028,0.26827766,68026.0,68025.0,0.073542]
[1729855300622,0.166387,68026.0,68025.0,0.16015843]
[1729855301023,0.073538,68029.0,68028.0,0.073538]
[1729855301223,0.166384,68029.0,68028.0,0.16015443]
[1729855302229,0.166384,68029.0,68028.0,0.16011522]
[1729855302632,0.166384,68029.0,68028.0,0.14666003]
[1729855302835,0.166384,68029.0,68028.0,0.16017713]
[1729855303134,0.166384,68029.0,68028.0,0.16013291]
[1729855307827,0.166384,68029.0,68028.0,0.16017337]
[1729855308632,0.33077901,68029.0,68028.0,0.073538]
[1729855314439,0.26837969,68029.0,68028.0,0.073538]
[1729855315840,0.166384,68029.0,68027.0,0.07315714]
[1729855316045,0.166385,68028.0,68027.0,0.07315714]
[1729855316830,0.07354,68027.0,68026.0,0.07315714]
[1729855317039,0.700232,68027.0,68026.0,0.05854378]
[1729855317239,0.073541,68026.0,68025.0,0.05854378]
[1729855317542,0.073542,68025.0,68024.0,0.05854378]
[1729855317738,0.711994,68025.0,68024.0,0.05854378]
[1729855318448,0.711994,68025.0,68019.0,0.07316697]
[1729855318641,0.178148,68025.0,68020.0,0.07316697]
[1729855318946,0.073549,68019.0,68018.0,0.07316697]
[1729855319241,0.073549,68019.0,68016.0,0.073551]
[1729855319242,0.07355,68018.0,68017.0,0.07316697]
[1729855319441,0.073551,68017.0,68016.0,0.07316697]
[1729855319641,0.073554,68014.0,68013.0,0.07316697]
[1729855319844,0.073554,68014.0,68012.0,0.07316697]
[1729855319845,0.546492,68014.0,68012.0,0.07316697]
[1729855320035,0.073556,68012.0,68011.0,0.07316697]
[1729855320240,0.166402,68012.0,68011.0,0.08721214]
[1729855320938,0.092846,68012.0,68011.0,0.08703868]
[1729855321242,0.166402,68012.0,68011.0,0.16017597]
[1729855321444,0.166402,68012.0,68011.0,0.073557]
[1729855321942,0.166402,68012.0,68011.0,0.23370722]
[1729855322145,0.09248,68014.0,68011.0,0.25297765]
[1729855322337,0.09248,68014.0,68008.0,0.485546]
[1729855322338,0.09248,68014.0,68013.0,0.166401]
[1729855322537,0.092846,68018.0,68013.0,0.17470719]
[1729855322743,0.092846,68018.0,68017.0,0.1466249]
[1729855322943,0.092846,68018.0,68017.0,0.23366769]
[1729855323740,0.25612967,68018.0,68017.0,0.073551]
[1729855323942,0.32967967,68018.0,68017.0,0.073551]
[1729855324346,0.26770218,68018.0,68017.0,0.073551]
[1729855326351,0.28240218,68018.0,68017.0,0.073551]
[1729855326847,0.22797429,68018.0,68017.0,0.073551]
[1729855327349,0.11595737,68018.0,68017.0,0.073551]
[1729855330844,0.0147,68018.0,68017.0,0.073551]
[1729855331647,0.181096,68018.0,68017.0,0.073551]
[1729855331951,0.181096,68018.0,68017.0,0.1466249]
[1729855332157,0.192856,68018.0,68017.0,0.073551]
[1729855339061,0.192856,68018.0,68017.0,0.16032464]
[1729855340057,0.192856,68018.0,68017.0,0.14665387]
[1729855340258,0.553656,68018.0,68017.0,0.07310515]
[1729855340467,0.073551,68017.0,68016.0,0.07310515]
[1729855340662,0.073551,68017.0,68015.0,0.07310515]
[1729855340663,0.073552,68016.0,68015.0,0.07310515]
[1729855340973,0.073553,68015.0,68014.0,0.07311821]
[1729855341157,0.259244,68016.0,68009.0,0.07311821]
[1729855341158,0.166398,68016.0,68009.0,0.07311821]
[1729855341352,0.167113,68015.0,68014.0,0.05850152]
[1729855341959,0.073559,68010.0,68009.0,0.07311821]
[1729855342164,0.259251,68010.0,68009.0,0.16030993]
[1729855342360,0.166405,68010.0,68009.0,0.16030993]
[1729855342856,0.092846,68010.0,68008.0,0.07311821]
[1729855343063,0.07356,68009.0,68008.0,0.07312562]
[1729855343662,0.07356,68009.0,68007.0,0.07312562]
[1729855343663,0.073561,68008.0,68007.0,0.07312562]
[1729855343856,0.073561,68008.0,68007.0,0.16044227]
[1729855344163,0.073561,68008.0,68007.0,0.07312562]
[1729855344666,0.073562,68007.0,68006.0,0.07312562]
[1729855344957,0.073562,68007.0,68005.0,0.07312285]
[1729855344958,0.092846,68007.0,68005.0,0.07312285]
[1729855345261,0.092846,68007.0,67998.0,0.3608]
[1729855345262,0.092846,68007.0,68006.0,0.05849607]
[1729855345458,0.073564,68005.0,68004.0,0.05849607]
[1729855345658,0.073565,68004.0,68003.0,0.05849607]
[1729855345853,0.81851318,68004.0,67986.0,0.104784]
[1729855346053,0.092846,67991.0,67986.0,0.104784]
[1729855346258,0.092846,67991.0,67990.0,0.10658]
[1729855352872,0.092846,67991.0,67990.0,0.16507607]
[1729855353373,0.092846,67991.0,67990.0,0.10658]
[1729855353559,0.092846,67991.0,67990.0,0.13207607]
[1729855354261,0.092846,67991.0,67990.0,0.07358]
[1729855354662,0.092846,67991.0,67990.0,0.13207607]
[1729855354868,0.36200001,67998.0,67990.0,0.13207607]
[1729855354869,0.092846,67997.0,67990.0,0.13207607]
[1729855355071,0.09648,67991.0,67990.0,0.07358]
[1729855355267,0.3856737,67998.0,67990.0,0.07358]
[1729855355468,0.170053,67997.0,67996.0,0.073573]
[1729855356474,0.262899,67997.0,67996.0,0.073573]
[1729855357574,0.166419,67997.0,67996.0,0.073573]
[1729855357771,0.262899,67997.0,67996.0,0.073573]
[1729855360265,0.262899,67997.0,67996.0,0.11731585]
[1729855361361,0.3608,68011.0,67996.0,0.453646]
[1729855361566,0.3608,68011.0,68008.0,0.073559]
[1729855361775,0.3608,68011.0,68010.0,0.073559]
[1729855361964,0.45728,68011.0,68010.0,0.073559]
[1729855362169,0.3608,68011.0,68010.0,0.073559]
[1729855362371,0.45728,68011.0,68010.0,0.073559]
[1729855362672,0.170037,68011.0,68010.0,0.073559]
[1729855363268,0.262883,68011.0,68010.0,0.073559]
[1729855364875,0.189326,68011.0,68010.0,0.11731028]
[1729855365178,0.3608,68017.0,68004.0,0.073565]
[1729855365179,0.3608,68017.0,68009.0,0.092846]
[1729855365379,0.3608,68017.0,68016.0,0.073552]
[1729855365671,0.45728,68017.0,68016.0,0.073552]
[1729855366966,0.530831,68017.0,68016.0,0.073552]
[1729855367878,0.760132,68017.0,68016.0,0.073552]
[1729855368979,0.663652,68017.0,68016.0,0.073552]
[1729855375874,0.760092,68017.0,68016.0,0.073552]
[1729855376080,0.299587,68017.0,68016.0,0.073552]
[1729855376278,0.299587,68017.0,68016.0,0.11731918]
[1729855376481,0.03675,68017.0,68016.0,0.073552]
[1729855376681,0.03675,68017.0,68016.0,0.434352]
[1729855377782,0.03675,68017.0,68016.0,0.49268859]
[1729855377977,0.03675,68017.0,68016.0,0.434352]
[1729855378173,0.03675,68017.0,68016.0,0.49268252]
[1729855378569,0.03675,68017.0,68016.0,0.434352]
[1729855379678,0.03675,68017.0,68016.0,0.49268941]
[1729855380879,0.03675,68017.0,68016.0,0.13188941]
[1729855381786,0.110301,68017.0,68016.0,0.13188941]
[1729855383468,0.03675,68017.0,68016.0,0.13188941]
[1729855383872,0.129596,68017.0,68016.0,0.13188941]
[1729855385475,0.203147,68017.0,68016.0,0.13188941]
[1729855385879,0.203147,68017.0,68016.0,0.073552]
[1729855385880,0.24929824,68017.0,68016.0,0.073552]
[1729855386778,0.17574724,68017.0,68016.0,0.073552]
[1729855389677,0.17599317,68017.0,68016.0,0.073552]
[1729855391283,0.129596,68017.0,68016.0,0.073552]
[1729855392187,0.129596,68017.0,68016.0,0.11733498]
[1729855392881,0.129596,68017.0,68016.0,0.073552]
[1729855393387,0.03675,68017.0,68016.0,0.073552]
[1729855398185,0.19865229,68017.0,68016.0,0.073552]
[1729855398877,0.19865229,68017.0,68016.0,0.434352]
[1729855400885,0.21041229,68017.0,68016.0,0.434352]
[1729855401281,0.35681926,68017.0,68016.0,0.073552]
[1729855402178,0.21019605,68017.0,68016.0,0.073552]
[1729855402378,0.14882497,68017.0,68016.0,0.073552]
[1729855402587,0.04641962,68017.0,68016.0,0.166398]
[1729855402787,0.04641962,68017.0,68016.0,0.17835782]
[1729855406495,0.092846,68026.0,68025.0,0.073542]
[1729855406691,0.092846,68026.0,68025.0,0.434342]
[1729855407097,0.042846,68026.0,68025.0,0.434342]
[1729855413395,0.09700464,68026.0,68025.0,0.434342]
[1729855413596,0.14365102,68026.0,68025.0,0.434342]
[1729855415189,0.10080502,68026.0,68025.0,0.434342]
[1729855415388,0.19365102,68026.0,68025.0,0.434342]
[1729855415591,0.19329881,68026.0,68025.0,0.434342]
[1729855415901,0.10045281,68026.0,68025.0,0.527188]
[1729855416204,0.0464834,68026.0,68025.0,0.557888]
[1729855417099,0.0464834,68026.0,68025.0,0.465042]
[1729855417601,0.10040946,68027.0,68025.0,0.3915]
[1729855418497,0.10040946,68027.0,68026.0,0.3608]
[1729855418899,0.10040946,68027.0,68026.0,0.434341]
[1729855419099,0.10040946,68027.0,68026.0,0.527187]
[1729855420097,0.092846,68028.0,68026.0,0.453646]
[1729855420303,0.10049439,68027.0,68026.0,0.527187]
[1729855421205,0.10049439,68027.0,68026.0,0.968187]
[1729855421503,0.434328,68039.0,68033.0,0.073534]
[1729855421698,0.092846,68034.0,68033.0,0.073534]